Cogmind - Beta 10.2 @@@ ROGUE MODE // 2021.05.10 @ 18:59:07 Player: John1001 Result: Destroyed by D-53 Grenadier with Mini Grenade Launcher Performance ------------- Evolutions (0) 0 Regions Visited (2) 400 Robots Destroyed (15) 75 Value Destroyed (482) 482 Prototype IDs (0) 0 Alien Tech Used (0) 0 Bonus (0) 0 TOTAL SCORE: 957 Bonus ------- None Cogmind --------- Core Integrity 0/250 Matter 207/300 Energy 150/160 System Corruption 0% Temperature Cool (0) Movement Walking (120) Location -10/Mines Parts ------- > --- POWER (1) -------- Light Nuclear Core > --- PROPULSION (2) --- Aluminum Leg Aluminum Leg > --- UTILITY (2) ------ Medium Storage Unit Signal Interpreter > --- WEAPON (2) ------- Great Maul > --- INVENTORY (8) ---- Light Treads Light Treads Aluminum Leg Heat Sink Hacking Suite Small Laser Peak State ------------ > --- POWER ------------ Light Nuclear Core > --- PROPULSION ------- Aluminum Leg Aluminum Leg > --- UTILITY ---------- Medium Storage Unit Signal Interpreter > --- WEAPON ----------- Small Laser Rocket Launcher > --- INVENTORY -------- Ion Engine Light Treads Light Treads Aluminum Leg Heat Sink Hacking Suite Small Laser Great Maul [Rating: 11] Favorites ----------- Power Ion Engine Engine Ion Engine Power Core Light Nuclear Core Propulsion Aluminum Leg Leg Aluminum Leg Utility Medium Storage Unit Device Structural Scanner Storage Medium Storage Unit Processor Signal Interpreter Weapon Small Laser Energy Gun Small Laser Ballistic Gun Light Assault Rifle Launcher Rocket Launcher Impact Weapon Great Maul Build | -11 -10 -10 ------- Run | Scr Mat Min Slots Evolved . | . . . Power . | . . . Propulsion . | . . . Utility . | . . . Weapon . | . . . Parts Attached 24 | 6 14 4 Power 6 | 1 3 2 Engine 3 | 1 2 . Core 3 | . 1 2 Reactor . | . . . Propulsion 7 | 2 5 . Treads . | . . . Leg 7 | 2 5 . Wheel . | . . . Hover . | . . . Flight . | . . . Utility 5 | 1 4 . Device 2 | . 2 . Storage 2 | 1 1 . Processor 1 | . 1 . Hackware . | . . . Protection . | . . . Artifact . | . . . Weapon 6 | 2 2 2 Energy Gun 3 | 1 2 . Energy Cannon . | . . . Ballistic Gun 1 | 1 . . Ballistic Cannon . | . . . Launcher 1 | . . 1 Special Weapon . | . . . Impact Weapon 1 | . . 1 Slashing Weapon . | . . . Piercing Weapon . | . . . Special Melee Weapon . | . . . Unidentified Prototypes . | . . . Parts Lost 9 | . 6 3 Power 3 | . 2 1 Propulsion 1 | . 1 . Utility 1 | . 1 . Weapon 4 | . 2 2 Highest Loss Streak 3 | . 3 3 Average Slot Usage (%) 94 | . 87 99 Engine 7 | . 6 7 Core 3 | . . 6 Leg 27 | . 26 28 Device 4 | . 10 . Storage 14 | . 14 14 Processor 8 | . . 14 Energy Gun 16 | . 20 13 Ballistic Gun 2 | . 7 . Launcher 7 | . . 13 Naked Turns . | . . . Heaviest Build 18 | 10 16 18 Greatest Support 20 | 20 20 20 Greatest Overweight (x) . | . . . Average Overweight (x) . | . . . Largest Inventory Capacity 8 | 6 8 8 Average Capacity 7 | 5 6 8 Most Carried 8 | 4 6 8 Average Carried 6 | 1 4 7 Final Capacity 8 | 6 8 8 Final Carried 6 | 4 5 6 Class Distribution -------------------- 60% | Scavenger-Mutant 39% | Mutant Dominant Class ---------------- Mutant | -10/Materials Scavenger-Mutant | -10/Mines Resources | -11 -10 -10 ----------- Run | Scr Mat Min Matter Collected 439 | 213 185 41 Remotely . | . . . Salvage Created 503 | . 408 95 Parts 23 | . 21 2 Haulers Intercepted 1 | . 1 . Recyclers Shooed . | . . . Parts Field Recycled . | . . . Retrieved Matter . | . . . Parts Self-Destructed . | . . . Prevented . | . . . Kills | -11 -10 -10 ------- Run | Scr Mat Min Combat Hostiles Destroyed 19 | . 8 11 Guns 8 | . 8 . AOE 11 | . . 11 Classes Destroyed 6 | . 4 2 Worker 2 | . 2 . Hauler 1 | . 1 . Watcher 1 | . 1 . Grunt 10 | . 8 2 Demolisher 1 | . . 1 Assembled 8 | . . 8 Best Kill Streak 9 | . 4 9 Combat Bots Only 9 | . 4 9 Max Kills in Single Turn 4 | . 2 4 Gunslinging . | . . . Exploded 4 | . . 4 Melee . | . . . Uniques/NPCs Destroyed . | . . . Combat | -11 -10 -10 -------- Run | Scr Mat Min Damage Taken 1166 | . 771 395 Core 253 | . 162 91 Absorbed by Shields . | . . . Core Remaining (%) 100 | 100 . . Volleys Fired 58 | . 48 10 Largest 2 | . 2 2 Hottest 80 | . 80 73 Shots Fired 99 | . 86 13 Gun 90 | . 86 4 Cannon . | . . . Launcher 9 | . . 9 Special . | . . . Kinetic 36 | . 36 . Thermal 54 | . 50 4 Explosive 9 | . . 9 Electromagnetic . | . . . Robot Hit Streak 11 | . 11 10 Robot Miss Streak 4 | . 4 1 Penetration Max . | . . . Secondary Targets . | . . . Shots Hit Robots 68 | . 58 10 Core Hits 54 | . 24 30 Critical Hits . | . . . Critical Kills . | . . . Critical Parts Destroyed . | . . . Melee Attacks 1 | . . 1 Impact 1 | . . 1 Slashing . | . . . Piercing . | . . . Sneak Attacks . | . . . Combat Hostiles . | . . . Follow-up Attacks . | . . . Damage Inflicted 1827 | 2 955 870 Guns 651 | . 620 31 Cannons . | . . . Explosions 1152 | . 335 817 Melee 22 | . . 22 Ramming 2 | 2 . . Kinetic 201 | . 201 . Thermal 450 | . 419 31 Explosive 1152 | . 335 817 Electromagnetic . | . . . Impact 22 | . . 22 Slashing . | . . . Piercing . | . . . Highest Corruption . | . . . Average Corruption . | . . . Corruption Purged . | . . . Overload Shots . | . . . Overflow Damage 91 | . 61 30 Projectiles . | . . . Explosions 91 | . 61 30 Melee . | . . . Knockbacks . | . . . Impact . | . . . Kinetic . | . . . Secondary . | . . . Self-Inflicted Damage 247 | . 207 40 Shots 4 | . 2 2 Rammed . | . . . Targets Rammed 1 | 1 . . Kicked 1 | 1 . . Crushed . | . . . Highest Temperature 348 | . 348 78 Average Temperature 110 | . 122 46 Received Heat Transfer 367 | . 312 55 Effects 2 | . 2 . Interference 2 | . 2 . Siege Activations . | . . . Robots Corrupted . | . . . Combat Hostiles . | . . . Parts Fried . | . . . Impact Corruptions . | . . . Robots Melted . | . . . Combat Hostiles . | . . . Parts Melted 1 | . 1 . Heat Transferred 1155 | . 1080 75 Parts Sabotaged . | . . . Parts Stolen . | . . . Parts Stripped . | . . . Power Chain Reactions . | . . . Missiles Intercepted . | . . . Alert | -11 -10 -10 ------- Run | Scr Mat Min Peak Influence 298 | . 298 180 Initial 115 | . . 115 Average 114 | . 164 94 Maximum Alert Level 1 | . 1 . Low Security (%) 81 | 100 50 100 Level 1 18 | . 49 . Level 2 . | . . . Level 3 . | . . . Level 4 . | . . . Level 5 . | . . . High Security . | . . . Max Security . | . . . Squads Dispatched 3 | . 2 1 Investigation 1 | . . 1 Extermination . | . . . Reinforcement 2 | . 2 . Assault . | . . . Garrison . | . . . Intercept . | . . . Construction Impeded . | . . . Haulers Reinforced . | . . . Stealth | -11 -10 -10 --------- Run | Scr Mat Min Distress Signals 1 | . 1 . Communications Jammed . | . . . Distress Signals . | . . . Times Spotted 37 | . 16 21 Peak Tracking Total 7 | . 4 7 Tactical Retreats . | . . . Traps | -11 -10 -10 ------- Run | Scr Mat Min Traps Triggered . | . . . Indirectly . | . . . Trap Hack Attempts . | . . . Triggered . | . . . Disarmed . | . . . Reprogrammed . | . . . Reused . | . . . Traps Extracted . | . . . Installed . | . . . Triggered . | . . . Machines | -11 -10 -10 ---------- Run | Scr Mat Min Machines Disabled 3 | . 2 1 Max in Single Turn 2 | . 2 1 Machines Sabotaged . | . . . Garrisons Compromised . | . . . Overloaded Fab Kills . | . . . Fab Network Shutdowns . | . . . Hacking | -11 -10 -10 --------- Run | Scr Mat Min Machines Accessed 2 | . 1 1 Terminals 1 | . 1 . Fabricators . | . . . Repair Stations . | . . . Recycling Units . | . . . Scanalyzers . | . . . Garrison Access . | . . . Total Hacks 2 | . 1 1 Successful 2 | . 1 1 Failed . | . . . Catastrophic . | . . . Database Lockouts . | . . . Manual . | . . . Terminals 1 | . 1 . Fabricators . | . . . Repair Stations . | . . . Recycling Units . | . . . Scanalyzers . | . . . Garrison Access . | . . . Terminal Hacks 2 | . 1 1 Open Door 1 | . . 1 Zone Layout 1 | . 1 . Fabricator Hacks . | . . . Repair Station Hacks . | . . . Recycling Unit Hacks . | . . . Scanalyzer . | . . . Garrison Access Hacks . | . . . Unauthorized Hacks . | . . . Terminals . | . . . Fabricators . | . . . Repair Stations . | . . . Recycling Units . | . . . Scanalyzers . | . . . Garrison Access . | . . . Data Cores Recovered . | . . . Used . | . . . Hacking Detections . | . . . Full Trace Events . | . . . Feedback Events . | . . . Feedback Blocked . | . . . Robot Schematics Acquired . | . . . Robots Built . | . . . Matter . | . . . Time . | . . . Total Robot Build Rating . | . . . Part Schematics Acquired . | . . . Parts Built . | . . . Matter . | . . . Time . | . . . Total Part Build Rating . | . . . Parts Repaired . | . . . Time . | . . . Parts Recycled . | . . . Recycled Matter . | . . . Retrieved Matter . | . . . Retrieved Components . | . . . Parts Scanalyzed . | . . . Part Schematics Acquired . | . . . Parts Damaged . | . . . Bothacking | -11 -10 -10 ------------ Run | Scr Mat Min Used RIF Installer . | . . . Robots Hacked . | . . . Non-combat . | . . . Combat . | . . . Robot Hacks Applied . | . . . Relay Couplers Released . | . . . Robots Rewired . | . . . Allies Hacked . | . . . Hacks Repelled . | . . . Allies | -11 -10 -10 -------- Run | Scr Mat Min Total Allies . | . . . Largest Group . | . . . Highest-Rated Group . | . . . Highest-Rated Ally . | . . . Total Orders . | . . . Ally Attacks . | . . . Total Damage . | . . . Kills . | . . . Allies Corrupted . | . . . Allies Melted . | . . . Intel | -11 -10 -10 ------- Run | Scr Mat Min Robot Analysis Total . | . . . Derelict Logs Recovered 1 | . . 1 Drone Launches . | . . . Drone Recoveries . | . . . Exploration | -11 -10 -10 ------------- Run | Scr Mat Min Turns Passed 1034 | 76 397 561 Spaces Moved 680 | 55 201 424 Core 5 | 5 . . Treads . | . . . Legs 675 | 50 201 424 Wheels . | . . . Hover . | . . . Flight . | . . . Fastest Speed 50 | 50 120 120 Average Speed 119 | 113 120 120 Slowest Speed 120 | 120 120 120 Overloaded Moves . | . . . Propulsion Burnouts . | . . . Robots Hopped . | . . . Cave-ins Triggered . | . . . Exploration Rate (%) 40 | 4 33 84 Regions Visited 2 Branch Regions 1 Pre-discovered Areas 1 | . . 1 Known Exits Taken 1 | . 1 . Unknown Exits Taken 1 | 1 . . Scrap Searched 1 | . . 1 Spaces Dug . | . . . Terrain Destroyed 96 | . 35 61 Melee . | . . . Projectile . | . . . AOE 96 | . 35 61 Terrain Rammed . | . . . Walls Destroyed . | . . . Machines Disabled . | . . . Actions | -11 -10 -10 --------- Run | Scr Mat Min Total 803 | 65 275 463 Wait 22 | . 3 19 Move 678 | 54 200 424 Hop . | . . . Pick Up 13 | 4 6 3 Fast Attach 12 | 6 5 1 Attach 6 | . 4 2 Detach 1 | . . 1 Swap 6 | . 5 1 Drop 5 | . 4 1 Fire 58 | . 48 10 Melee 1 | . . 1 Ram . | . . . Kick 1 | 1 . . Crush . | . . . Escape Stasis . | . . . Rewire . | . . . Trap . | . . . Miscellaneous . | . . . Route ------- -11/Scrapyard -10/Materials -10/Mines (discovered 1 exit: *Mat) History --------- Turn | Location | Event 7 | -11/Scrapyard | Discovered new exit (range 15) 77 | -11/Scrapyard | Entered Materials 254 | -10/Materials | Lost 3 parts (2p1w) 309 | -10/Materials | Build established: Mutant 378 | -10/Materials | Core integrity fell below 50% 452 | -10/Materials | Discovered new exit (range 15) 471 | -10/Materials | Identified exit to Mines 474 | -10/Materials | Entered Mines 481 | -10/Mines | Received a Rocket Launcher from a helpful Derelict 594 | -10/Mines | Met a Derelict shopkeep closing up shop 639 | -10/Mines | Found a hidden stash of uninstalled traps 712 | -10/Mines | Build established: Scavenger-Mutant 745 | -10/Mines | Learned 8 Materials zone layouts 810 | -10/Mines | Learned location of Storage (-7) 885 | -10/Mines | Discovered new exit (range 16) 902 | -10/Mines | Identified exit to Materials 983 | -10/Mines | Assembled infested the area 1029 | -10/Mines | Core integrity fell below 20% 1035 | -10/Mines | Destroyed by D-53 Grenadier with Mini Grenade Launcher Last Messages --------------- 01016_ as-92423 destroyed. 01016_ as-50509 destroyed. 01017_ The unstable cave ceiling collapses. 01017_ as-87085 destroyed. 01018_ as-07985 destroyed. 01019_ The unstable cave ceiling collapses. 01019_ as-53528 destroyed. 01020_ as-39987 destroyed. 01020_ as-28885 destroyed. 01020_ as-19126 destroyed. 01020_ U-05 Engineer destroyed. 01022_ The unstable cave ceiling collapses. 01022_ U-05 Engineer lays Concrete. 01023_ D-53 Grenadier destroyed. 01024_ U-05 Engineer destroyed. 01025_ The unstable cave ceiling collapses. 01026_ Lgt. Nuclear Core destroyed. 01028_ The unstable cave ceiling collapses. 01028_ Rocket Launcher destroyed. 01029_ The unstable cave ceiling collapses. Map ----- +----------------------------------------------------+ | | | | | | | | | | | | | | | | | | | | | | | ?????????????????????????????????????????????? | | ?????????????????????????????????????????????? | | ?????????????????????????????????????????????? | | ?????????????????????????????????????????????? | | #????????????????????????????????????????????? | | #????????????????????????????????????????????? | | #????????????????????????????????????????????? | | #????????????????????????????????????#####???? | | ???????????????????????????#####????## ##??? | | ???????????????####??????### ###### #??? | | ###########???## ####### #??? | | #???# ##??? | | ######### #???# ##???? | | ????????# #????# #????? | | ????????# #????#### @ ## ##????? | | ####????# #???????## d ######?????? | | ##???# #????????# #??????????? | | ##### ######?# ###??????????? | | #?# # #???????????? | | ########### # # # #???????????? | | ##?????????# % # #???????????? | | ##?????????## ###???????????? | | ####???????## # ##?????????????? | | ##???????## a###??????????????? | | #??????## == ###?????????????? | | #?????## %*= ???????????? | | ##????## |%! % ???????????? | | #????## #???????????? | | #???## ## #????????????? | | ###### ##?# ## #????????????? | | ##### ##??# ##???? #????????????? | | ##### #???###????????????????????? | | #??????????????????????????? | | # ## #####??????????????????????? | | ### ### #### #??????????????????????? | | ??# ## #??## #??????????????????????? | | ??# ## #???# # #??????????????????????? | | ??# ##???# # #??????????????????????? | | ??##### ##????# ## #??????????????????????? | +----------------------------------------------------+ Best States ------------- Heat Dissipation 35 Energy Generation 14 Energy Capacity 250 Matter Stores 300 Matter Capacity 300 Sight Range 16 Terrain Scan Density 10 Evasion (%) 40 Item Schematics ----------------- None Robot Schematics ------------------ None Fabricated ------------ Nothing Alien Tech Used ----------------- None Achievements -------------- None Challenges ------------ None Game ------ Seed SignalCloakPurifier Manual? 0 Play Time 00:24:06 Cumulative 32.6 hours Start 2021.05.10 @ 18:32:41 End 2021.05.10 @ 18:59:07 Sessions 1 Manual Loads 0 Difficulty Rogue Special Mode None Game No. 12 Rogue 9 Adventurer 0 Explorer 3 Win Type - Total 0 Types 0/0/0/0/0/0/0/0/0 Lore% 43 Gallery% 32 Achievement% 34 Wizard Run 0 Options --------- ASCII 0 Keyboard 1 Movement Numpad Keybinds 0 Fullscreen 1 Font 18/Terminus Map View 76x50 Tactical HUD 1 Map Filters NONE Filters NONE Steam 1 RUN: f173df61-4d89-4b16-9aca-f3fa43ba782a